{"text_format":"1","workbook":"xlsx","n_sheets":1,"sheets":["Приходы"],"not_rendered":{"charts":0,"images":2,"macros":1,"external_links":1,"defined_names":3,"comments":0,"pivot_tables":0},"unopened":[],"bounds":{"document_bytes":16777216,"sheet_cells":100000,"rows_first":2000,"rows_last":500,"rows_between":2000,"halvings":0,"cell_chars":16384,"cell_head_chars":4096},"cells_cut":0,"cells_raw":0,"read":"whole","date_system":"1900"}

{"sheet":"Приходы","index":0,"n_rows":7,"n_cols":8,"rows_kept":7,"cut":false,"hidden":false,"merged":[]}
["Наименование","Кол.","ЕД","Дата прихода","Код 1С","Артикул","Цена","Сумма"]
["Гайка М4 DIN 439",1,{"$f":"VLOOKUP(Пришло[[#This Row],[Наименование]],[1]!Всего[#Data],4,FALSE)","v":"шт"},"2020-03-01T00:43:46",{"$f":"VLOOKUP(Пришло[[#This Row],[Наименование]],[1]!Всего[#Data],2,FALSE)","v":"13779"},{"$f":"VLOOKUP(Пришло[[#This Row],[Наименование]],[1]!Всего[#Data],3,FALSE)","v":" "},{"$f":"VLOOKUP(Пришло[[#This Row],[Наименование]],[1]!Всего[#Data],6,FALSE)","v":0.49},{"$f":"Пришло[[#This Row],[Кол.]]*Пришло[[#This Row],[Цена]]","v":0.49}]
["Гайка М4 DIN 439",2,{"$f":"VLOOKUP(Пришло[[#This Row],[Наименование]],[1]!Всего[#Data],4,FALSE)","v":"шт"},"2020-03-01T00:44:36",{"$f":"VLOOKUP(Пришло[[#This Row],[Наименование]],[1]!Всего[#Data],2,FALSE)","v":"13779"},{"$f":"VLOOKUP(Пришло[[#This Row],[Наименование]],[1]!Всего[#Data],3,FALSE)","v":" "},{"$f":"VLOOKUP(Пришло[[#This Row],[Наименование]],[1]!Всего[#Data],6,FALSE)","v":0.49},{"$f":"Пришло[[#This Row],[Кол.]]*Пришло[[#This Row],[Цена]]","v":0.98}]
["Кабель FRC-20 плоский",1211,{"$f":"VLOOKUP(Пришло[[#This Row],[Наименование]],[1]!Всего[#Data],4,FALSE)","v":"м"},"2020-03-01T17:14:37",{"$f":"VLOOKUP(Пришло[[#This Row],[Наименование]],[1]!Всего[#Data],2,FALSE)","v":"12673"},{"$f":"VLOOKUP(Пришло[[#This Row],[Наименование]],[1]!Всего[#Data],3,FALSE)","v":"FRC-20"},{"$f":"VLOOKUP(Пришло[[#This Row],[Наименование]],[1]!Всего[#Data],6,FALSE)","v":34.33},{"$f":"Пришло[[#This Row],[Кол.]]*Пришло[[#This Row],[Цена]]","v":41573.629999999997}]
["Соединитель  электрический BLZP 5.08HC/06/180F SN OR BX",15,{"$f":"VLOOKUP(Пришло[[#This Row],[Наименование]],[1]!Всего[#Data],4,FALSE)","v":"шт"},"2020-03-01T18:29:40",{"$f":"VLOOKUP(Пришло[[#This Row],[Наименование]],[1]!Всего[#Data],2,FALSE)","v":"13624"},{"$f":"VLOOKUP(Пришло[[#This Row],[Наименование]],[1]!Всего[#Data],3,FALSE)","v":"1606660000"},{"$f":"VLOOKUP(Пришло[[#This Row],[Наименование]],[1]!Всего[#Data],6,FALSE)","v":41.33},{"$f":"Пришло[[#This Row],[Кол.]]*Пришло[[#This Row],[Цена]]","v":619.94999999999993}]
["Гайка М4 DIN 439",100,{"$f":"VLOOKUP(Пришло[[#This Row],[Наименование]],[1]!Всего[#Data],4,FALSE)","v":"шт"},"2020-03-04T22:35:05",{"$f":"VLOOKUP(Пришло[[#This Row],[Наименование]],[1]!Всего[#Data],2,FALSE)","v":"13779"},{"$f":"VLOOKUP(Пришло[[#This Row],[Наименование]],[1]!Всего[#Data],3,FALSE)","v":" "},{"$f":"VLOOKUP(Пришло[[#This Row],[Наименование]],[1]!Всего[#Data],6,FALSE)","v":0.49},{"$f":"Пришло[[#This Row],[Кол.]]*Пришло[[#This Row],[Цена]]","v":49}]
["Гайка М4 DIN 439",11,{"$f":"VLOOKUP(Пришло[[#This Row],[Наименование]],[1]!Всего[#Data],4,FALSE)","v":"шт"},"2020-03-05T21:03:35",{"$f":"VLOOKUP(Пришло[[#This Row],[Наименование]],[1]!Всего[#Data],2,FALSE)","v":"13779"},{"$f":"VLOOKUP(Пришло[[#This Row],[Наименование]],[1]!Всего[#Data],3,FALSE)","v":" "},{"$f":"VLOOKUP(Пришло[[#This Row],[Наименование]],[1]!Всего[#Data],6,FALSE)","v":0.49},{"$f":"Пришло[[#This Row],[Кол.]]*Пришло[[#This Row],[Цена]]","v":5.39}]